[Event "GER-ch Youth-ODJM 2022 B"]
[Site "Willingen"]
[Date "2022.06.10"]
[Round "8.1"]
[White "Maul, Maik Joel"]
[Black "Werner, Florin"]
[Result "0-1"]
[ECO "A45"]
[WhiteElo "1532"]
[BlackElo "1609"]
[Annotator "NA RC COMBH"]
[PlyCount "100"]
[EventDate "2022.06.05"]
[EventType "swiss"]
[EventRounds "9"]
[EventCountry "GER"]
[SourceTitle "playchess.com"]
[Source "ChessBase"]
[SourceQuality "1"]
[TimeControl "40/4500+30:900+30"]

1. d4 {[%emt 0:00:00]} Nf6 {[%emt 0:00:00]} 2. Nc3 {[%emt 0:00:00]} d5 {[%emt 0:00:00]} 3. Bf4 {[%emt 0:00:00]} a6 {[%emt 0:00:00]} 4. e3 {[%emt 0:00:00]} Bf5 {[%emt 0:00:00]} 5. f3 {[%emt 0:00:00]} e6 {[%emt 0:00:00]} 6. g4 {[%emt 0:00:00]} Bg6 {[%emt 0:00:00]} 7. h4 {[%emt 0:00:00]} h6 {[%emt 0:00:00]} 8. Bd3 {[%emt 0:00:00]} Bxd3 {[%emt 0:00:00]} 9. cxd3 {[%emt 0:00:00]} c5 {[%emt 0:00:00]} 10. dxc5 {[%emt 0:00:00]} Bxc5 {[%emt 0:00:00]} 11. d4 {[%emt 0:00:00]} Bd6 {[%emt 0:00:00]} 12. Nge2 {[%emt 0:00:00]} Nc6 {[%emt 0:00:00]} 13. Rc1 {[%emt 0:00:00]} Qd7 {[%emt 0:00:00]} 14. Kf2 {[%emt 0:00:00]} b5 {[%emt 0:16:33]} 15. Bxd6 {[%emt 0:00:00]} Qxd6 {[%emt 0:00:05]} 16. Nf4 {[%emt 0:00:00]} Ke7 {[%emt 0:04:45]} 17. g5 {[%emt 0:05:12]} hxg5 {[%emt 0:04:36]} 18. hxg5 {[%emt 0:01:29]} Nd7 {[%emt 0:00:36]} 19. Qc2 {[%emt 0:01:00]} Nb4 {[%emt 0:00:55]} 20. Qb1 {[%emt 0:00:42]} g6 {[%emt 0:13:12]} 21. Kg2 {[%emt 0:05:35]} Nc6 {[%emt 0:01:00]} 22. Rh6 {[%emt 0:07:31]} Rxh6 {[%emt 0:01:37]} 23. gxh6 {[%emt 0:00:05]} Nxd4 {[%emt 0:16:07]} 24. Nxg6+ {[%emt 0:01:07]} fxg6 {[%emt 0:00:05]} 25. exd4 {[%emt 0:00:06]} Qf4 {[%emt 0:02:15]} 26. Re1 {[%emt 0:13:48]} Kf6 {[%emt 0:00:56]} 27. Qc2 {[%emt 0:06:16]} Qg5+ {[%emt 0:02:59]} 28. Kf1 {[%emt 0:03:06]} Rh8 {[%emt 0:05:36]} 29. Qe2 {[%emt 0:02:05]} Qf5 {[%emt 0:00:29]} 30. Qe3 {[%emt 0:02:28]} g5 {[%emt 0:00:08]} 31. Ne2 {[%emt 0:02:41]} Qh3+ {[%emt 0:05:54]} 32. Kf2 {[%emt 0:00:27]} Rxh6 {[%emt 0:00:10]} 33. Ng3 {[%emt 0:00:08]} Nf8 {[%emt 0:02:36]} 34. f4 {[%emt 0:03:55]} Qh2+ {[%emt 0:02:08]} 35. Kf1 {[%emt 0:02:16]} gxf4 {[%emt 0:01:35]} 36. Qxf4+ {[%emt 0:00:21]} Kg7 {[%emt 0:00:39]} 37. Re5 {[%emt 0:17:00]} Qh3+ {[%emt 0:04:02]} 38. Kf2 {[%emt 0:00:41]} Qh4 {[%emt 0:01:45]} 39. Rg5+ {[%emt 0:01:13]} Ng6 {[%emt 0:00:09]} 40. Qc7+ {[%emt 0:00:44]} Kf8 {[%emt 0:00:29]} 41. Qd8+ {[%emt 0:16:04]} Kf7 {[%emt 0:16:53]} 42. Kf3 {[%emt 0:03:45]} Qf4+ {[%emt 0:00:33]} 43. Kg2 {[%emt 0:00:15]} Nh4+ {[%emt 0:02:26]} 44. Kh3 {[%emt 0:01:41]} Nf5+ {[%emt 0:00:00]} 45. Kg2 {[%emt 0:00:00]} Qd2+ {[%emt 0:00:00]} 46. Kg1 {[%emt 0:00:00]} Qxd4+ {[%emt 0:00:00]} 47. Kg2 {[%emt 0:00:00]} Qd2+ {[%emt 0:00:00]} 48. Kg1 {[%emt 0:00:00]} Qh2+ {[%emt 0:00:00]} 49. Kf1 {[%emt 0:00:00]} Nxg3+ {[%emt 0:00:00]} 50. Rxg3 {[%emt 0:00:00]} Rf6+ {[%emt 0:00:00]} 0-1

[Event "GER-ch Youth-ODJM 2022 B"]
[Site "Willingen"]
[Date "2022.06.10"]
[Round "8.5"]
[White "Morio, Estelle"]
[Black "Stülcken, Philipp"]
[Result "1-0"]
[ECO "A03"]
[WhiteElo "1823"]
[BlackElo "1513"]
[Annotator "NA RC COMBH"]
[PlyCount "83"]
[EventDate "2022.06.05"]
[EventType "swiss"]
[EventRounds "9"]
[EventCountry "GER"]
[SourceTitle "playchess.com"]
[Source "ChessBase"]
[SourceQuality "1"]
[TimeControl "40/4500+30:900+30"]

1. f4 {[%emt 0:00:00]} d5 {[%emt 0:00:00]} 2. Nf3 {[%emt 0:00:00]} g6 {[%emt 0:00:00]} 3. g3 {[%emt 0:00:00]} Bg7 {[%emt 0:00:00]} 4. Bg2 {[%emt 0:00:00]} Nf6 {[%emt 0:00:00]} 5. O-O {[%emt 0:00:00]} O-O {[%emt 0:00:00]} 6. d3 {[%emt 0:00:00]} Nc6 {[%emt 0:00:00]} 7. h3 {[%emt 0:00:00]} Re8 {[%emt 0:00:00]} 8. d4 {[%emt 0:00:00]} Ne4 {[%emt 0:03:43]} 9. Kh2 {[%emt 0:01:11]} e6 {[%emt 0:05:30]} 10. e3 {[%emt 0:05:27]} f6 {[%emt 0:07:16]} 11. Nbd2 {[%emt 0:07:51]} Nd6 {[%emt 0:02:31]} 12. g4 {[%emt 0:13:49]} b6 {[%emt 0:04:11]} 13. g5 {[%emt 0:05:00]} Bb7 {[%emt 0:13:21]} 14. Rg1 {[%emt 0:07:12]} f5 {[%emt 0:04:56]} 15. Nf1 {[%emt 0:01:57]} Ne4 {[%emt 0:00:55]} 16. Ng3 {[%emt 0:01:02]} Nxg3 {[%emt 0:00:56]} 17. Kxg3 {[%emt 0:00:05]} Kf7 {[%emt 0:01:38]} 18. Rh1 {[%emt 0:00:39]} Rh8 {[%emt 0:00:34]} 19. h4 {[%emt 0:01:44]} a5 {[%emt 0:18:46]} 20. Bd2 {[%emt 0:07:11]} Ba6 {[%emt 0:03:11]} 21. b3 {[%emt 0:05:24]} Rc8 {[%emt 0:02:28]} 22. h5 {[%emt 0:03:52]} Qd7 {[%emt 0:03:57]} 23. Qe1 {[%emt 0:03:41]} Qd6 {[%emt 0:01:20]} 24. Bf1 {[%emt 0:08:44]} Bxf1 {[%emt 0:00:31]} 25. Qxf1 {[%emt 0:00:03]} Ra8 {[%emt 0:01:31]} 26. a4 {[%emt 0:03:43]} Rag8 {[%emt 0:02:54]} 27. Qe2 {[%emt 0:01:02]} Ke8 {[%emt 0:00:58]} 28. Rh2 {[%emt 0:00:27]} Kd7 {[%emt 0:00:32]} 29. Rah1 {[%emt 0:00:06]} Kc8 {[%emt 0:02:08]} 30. hxg6 {[%emt 0:03:03]} hxg6 {[%emt 0:00:07]} 31. Rxh8 {[%emt 0:00:08]} Rxh8 {[%emt 0:00:06]} 32. Rxh8+ {[%emt 0:01:37]} Bxh8 {[%emt 0:00:05]} 33. Nh4 {[%emt 0:00:52]} Ne7 {[%emt 0:00:43]} 34. Qh2 {[%emt 0:00:25]} Qd8 {[%emt 0:01:13]} 35. Bc1 {[%emt 0:00:22]} Qg8 {[%emt 0:01:43]} 36. Ba3 {[%emt 0:00:32]} Kd7 {[%emt 0:00:08]} 37. Bxe7 {[%emt 0:02:29]} Kxe7 {[%emt 0:00:13]} 38. Nxg6+ {[%emt 0:00:09]} Qxg6 {[%emt 0:00:13]} 39. Qxh8 {[%emt 0:00:04]} c5 {[%emt 0:01:52]} 40. Kh4 {[%emt 0:04:42]} cxd4 {[%emt 0:00:45]} 41. exd4 {[%emt 0:15:34]} Kf7 {[%emt 0:16:10]} 42. Qh5 {[%emt 0:00:00]} 1-0

[Event "GER-ch Youth-ODJM 2022 B"]
[Site "Willingen"]
[Date "2022.06.10"]
[Round "8.6"]
[White "Mehner, Lorenz"]
[Black "Tryfon, Konstantin"]
[Result "1-0"]
[ECO "D35"]
[WhiteElo "1609"]
[BlackElo "1634"]
[Annotator "NA RC COMBH"]
[PlyCount "95"]
[EventDate "2022.06.05"]
[EventType "swiss"]
[EventRounds "9"]
[EventCountry "GER"]
[SourceTitle "playchess.com"]
[Source "ChessBase"]
[SourceQuality "1"]
[TimeControl "40/4500+30:900+30"]

1. d4 {[%emt 0:00:00]} d5 {[%emt 0:00:00]} 2. c4 {[%emt 0:00:00]} e6 {[%emt 0:00:00]} 3. Nc3 {[%emt 0:00:00]} Nf6 {[%emt 0:00:00]} 4. cxd5 {[%emt 0:00:00]} exd5 {[%emt 0:00:00]} 5. Bg5 {[%emt 0:00:00]} Nbd7 {[%emt 0:00:00]} 6. e3 {[%emt 0:00:00]} Be7 {[%emt 0:00:00]} 7. Bd3 {[%emt 0:00:00]} c6 {[%emt 0:00:00]} 8. h3 {[%emt 0:00:00]} Ne4 {[%emt 0:00:00]} 9. Bxe7 {[%emt 0:00:00]} Qxe7 {[%emt 0:00:00]} 10. Nge2 {[%emt 0:00:00]} Ndf6 {[%emt 0:00:00]} 11. O-O {[%emt 0:00:00]} O-O {[%emt 0:00:00]} 12. Rb1 {[%emt 0:00:00]} a5 {[%emt 0:00:00]} 13. a3 {[%emt 0:00:00]} Nd6 {[%emt 0:00:00]} 14. b4 {[%emt 0:04:08]} axb4 {[%emt 0:00:00]} 15. axb4 {[%emt 0:00:20]} b5 {[%emt 0:00:00]} 16. Qc2 {[%emt 0:02:37]} h6 {[%emt 0:00:15]} 17. Nc1 {[%emt 0:04:11]} Nfe4 {[%emt 0:06:53]} 18. Nxe4 {[%emt 0:04:58]} dxe4 {[%emt 0:00:13]} 19. Be2 {[%emt 0:00:16]} Nc4 {[%emt 0:02:30]} 20. Bxc4 {[%emt 0:02:52]} bxc4 {[%emt 0:05:10]} 21. Ne2 {[%emt 0:00:59]} Ba6 {[%emt 0:07:59]} 22. Nc3 {[%emt 0:02:01]} f5 {[%emt 0:05:27]} 23. Qb2 {[%emt 0:05:41]} Qd7 {[%emt 0:05:04]} 24. Ra1 {[%emt 0:02:44]} Ra7 {[%emt 0:13:59]} 25. Rfc1 {[%emt 0:21:42]} Rb8 {[%emt 0:10:23]} 26. Nb1 {[%emt 0:01:00]} Qe7 {[%emt 0:09:00]} 27. Nd2 {[%emt 0:03:18]} Rxb4 {[%emt 0:02:54]} 28. Qa2 {[%emt 0:01:56]} Rbb7 {[%emt 0:09:15]} 29. Nxc4 {[%emt 0:01:01]} Kh8 {[%emt 0:00:18]} 30. Ne5 {[%emt 0:01:48]} Bb5 {[%emt 0:03:36]} 31. Ng6+ {[%emt 0:08:40]} Kh7 {[%emt 0:00:01]} 32. Nxe7 {[%emt 0:00:21]} Rxa2 {[%emt 0:00:10]} 33. Rxa2 {[%emt 0:00:17]} Rxe7 {[%emt 0:00:07]} 34. Rca1 {[%emt 0:00:32]} Bc4 {[%emt 0:01:04]} 35. Ra7 {[%emt 0:00:42]} Re6 {[%emt 0:00:23]} 36. Rf7 {[%emt 0:01:39]} Rf6 {[%emt 0:03:30]} 37. Rxf6 {[%emt 0:00:42]} gxf6 {[%emt 0:00:02]} 38. f3 {[%emt 0:00:50]} Bd5 {[%emt 0:00:08]} 39. Ra7+ {[%emt 0:02:31]} Kg6 {[%emt 0:00:09]} 40. f4 {[%emt 0:00:42]} h5 {[%emt 0:02:55]} 41. Kf2 {[%emt 0:16:27]} Kh6 {[%emt 0:18:53]} 42. Ke1 {[%emt 0:00:12]} Bc4 {[%emt 0:00:33]} 43. Rc7 {[%emt 0:00:12]} Bb5 {[%emt 0:00:06]} 44. Kd2 {[%emt 0:00:18]} h4 {[%emt 0:00:31]} 45. Kc3 {[%emt 0:00:11]} Bf1 {[%emt 0:00:22]} 46. Rxc6 {[%emt 0:00:31]} Bxg2 {[%emt 0:00:26]} 47. d5 {[%emt 0:00:47]} Bxh3 {[%emt 0:00:16]} 48. d6 {[%emt 0:00:07]} 1-0

[Event "GER-ch Youth-ODJM 2022 B"]
[Site "Willingen"]
[Date "2022.06.10"]
[Round "8.7"]
[White "Birkenheier, Nicolas"]
[Black "Abou Wally, Adrian"]
[Result "1/2-1/2"]
[ECO "C54"]
[WhiteElo "1350"]
[BlackElo "1601"]
[Annotator "NA RC COMBH"]
[PlyCount "77"]
[EventDate "2022.06.05"]
[EventType "swiss"]
[EventRounds "9"]
[EventCountry "GER"]
[SourceTitle "playchess.com"]
[Source "ChessBase"]
[SourceQuality "1"]
[TimeControl "40/4500+30:900+30"]

1. e4 {[%emt 0:00:00]} e5 {[%emt 0:00:00]} 2. Nf3 {[%emt 0:00:00]} Nc6 {[%emt 0:00:00]} 3. Bc4 {[%emt 0:00:00]} Bc5 {[%emt 0:00:00]} 4. c3 {[%emt 0:00:00]} Nf6 {[%emt 0:00:00]} 5. d3 {[%emt 0:00:00]} d6 {[%emt 0:00:00]} 6. Bb3 {[%emt 0:00:00]} a6 {[%emt 0:00:00]} 7. Nbd2 {[%emt 0:00:00]} Ba7 {[%emt 0:00:00]} 8. O-O {[%emt 0:00:00]} O-O {[%emt 0:00:00]} 9. Re1 {[%emt 0:00:00]} Ng4 {[%emt 0:00:00]} 10. Re2 {[%emt 0:00:00]} Kh8 {[%emt 0:00:00]} 11. h3 {[%emt 0:00:00]} Nh6 {[%emt 0:00:00]} 12. Nf1 {[%emt 0:00:00]} f5 {[%emt 0:00:00]} 13. Re1 {[%emt 0:03:10]} fxe4 {[%emt 0:00:00]} 14. dxe4 {[%emt 0:00:40]} Qf6 {[%emt 0:09:10]} 15. N1h2 {[%emt 0:08:06]} Qg6 {[%emt 0:27:48]} 16. Kf1 {[%emt 0:06:55]} Bxh3 {[%emt 0:26:47]} 17. gxh3 {[%emt 0:05:12]} Qh5 {[%emt 0:00:05]} 18. Kg2 {[%emt 0:02:14]} Rf6 {[%emt 0:12:26]} 19. Rg1 {[%emt 0:05:24]} Raf8 {[%emt 0:02:00]} 20. Be3 {[%emt 0:12:05]} Bxe3 {[%emt 0:02:29]} 21. fxe3 {[%emt 0:00:09]} Rg6+ {[%emt 0:02:09]} 22. Kh1 {[%emt 0:02:36]} Rxg1+ {[%emt 0:01:17]} 23. Qxg1 {[%emt 0:05:28]} Rxf3 {[%emt 0:00:43]} 24. Nxf3 {[%emt 0:00:40]} Qxf3+ {[%emt 0:00:04]} 25. Qg2 {[%emt 0:00:27]} Qxe3 {[%emt 0:00:23]} 26. Rf1 {[%emt 0:00:40]} g6 {[%emt 0:00:07]} 27. Qf3 {[%emt 0:00:16]} Qxf3+ {[%emt 0:00:28]} 28. Rxf3 {[%emt 0:00:05]} Kg7 {[%emt 0:00:07]} 29. Kg2 {[%emt 0:01:34]} Nd8 {[%emt 0:00:31]} 30. Kg3 {[%emt 0:01:37]} Nhf7 {[%emt 0:00:34]} 31. Bxf7 {[%emt 0:00:48]} Nxf7 {[%emt 0:00:05]} 32. h4 {[%emt 0:00:59]} Nd8 {[%emt 0:01:05]} 33. b4 {[%emt 0:01:00]} Ne6 {[%emt 0:00:43]} 34. Rf2 {[%emt 0:01:16]} Nf4 {[%emt 0:00:48]} 35. Rd2 {[%emt 0:01:09]} Kf7 {[%emt 0:00:40]} 36. c4 {[%emt 0:00:47]} Ke7 {[%emt 0:00:52]} 37. Kg4 {[%emt 0:01:18]} h6 {[%emt 0:00:07]} 38. a4 {[%emt 0:00:52]} Ne6 {[%emt 0:00:45]} 39. Ra2 {[%emt 0:02:50]} 1/2-1/2

[Event "GER-ch Youth-ODJM 2022 B"]
[Site "Willingen"]
[Date "2022.06.10"]
[Round "8.9"]
[White "Ermert, Karl Hans Ragnar"]
[Black "Hofmann, Benjamin"]
[Result "1/2-1/2"]
[ECO "C70"]
[WhiteElo "1662"]
[BlackElo "1483"]
[Annotator "NA RC COMBH"]
[PlyCount "70"]
[EventDate "2022.06.05"]
[EventType "swiss"]
[EventRounds "9"]
[EventCountry "GER"]
[SourceTitle "playchess.com"]
[Source "ChessBase"]
[SourceQuality "1"]
[TimeControl "40/4500+30:900+30"]

1. e4 {[%emt 0:00:00]} e5 {[%emt 0:00:00]} 2. Nf3 {[%emt 0:00:00]} Nc6 {[%emt 0:00:00]} 3. Bb5 {[%emt 0:00:00]} a6 {[%emt 0:00:00]} 4. Ba4 {[%emt 0:00:00]} Bc5 {[%emt 0:00:00]} 5. O-O {[%emt 0:00:00]} b5 {[%emt 0:00:00]} 6. Bb3 {[%emt 0:00:00]} Nf6 {[%emt 0:00:00]} 7. d3 {[%emt 0:00:00]} h6 {[%emt 0:00:00]} 8. Re1 {[%emt 0:00:00]} d6 {[%emt 0:00:00]} 9. c3 {[%emt 0:00:00]} O-O {[%emt 0:00:00]} 10. h3 {[%emt 0:00:00]} Re8 {[%emt 0:00:00]} 11. Nbd2 {[%emt 0:00:00]} Be6 {[%emt 0:00:00]} 12. Bc2 {[%emt 0:00:00]} Ba7 {[%emt 0:03:17]} 13. Nb3 {[%emt 0:42:20]} Ne7 {[%emt 0:11:42]} 14. d4 {[%emt 0:01:50]} Bxb3 {[%emt 0:01:53]} 15. Bxb3 {[%emt 0:00:36]} Ng6 {[%emt 0:01:24]} 16. Qc2 {[%emt 0:01:49]} c5 {[%emt 0:04:50]} 17. dxc5 {[%emt 0:03:02]} dxc5 {[%emt 0:02:57]} 18. Rd1 {[%emt 0:00:33]} Qc7 {[%emt 0:00:59]} 19. Bd5 {[%emt 0:01:11]} Nxd5 {[%emt 0:02:37]} 20. Rxd5 {[%emt 0:01:46]} c4 {[%emt 0:01:29]} 21. b3 {[%emt 0:01:16]} Rad8 {[%emt 0:02:32]} 22. Ba3 {[%emt 0:02:15]} Rxd5 {[%emt 0:00:27]} 23. exd5 {[%emt 0:00:06]} Nf4 {[%emt 0:05:38]} 24. Qf5 {[%emt 0:08:30]} g6 {[%emt 0:09:24]} 25. d6 {[%emt 0:02:50]} Qb6 {[%emt 0:04:22]} 26. Qc2 {[%emt 0:03:46]} Qc6 {[%emt 0:02:09]} 27. bxc4 {[%emt 0:03:07]} bxc4 {[%emt 0:00:52]} 28. Qd2 {[%emt 0:04:06]} Kg7 {[%emt 0:05:57]} 29. d7 {[%emt 0:03:02]} Rd8 {[%emt 0:00:30]} 30. Qd6 {[%emt 0:00:05]} Qxd6 {[%emt 0:02:07]} 31. Bxd6 {[%emt 0:00:06]} Nd3 {[%emt 0:00:17]} 32. Nxe5 {[%emt 0:02:32]} Nxe5 {[%emt 0:00:16]} 33. Bxe5+ {[%emt 0:00:05]} f6 {[%emt 0:00:14]} 34. Bg3 {[%emt 0:01:47]} Rxd7 {[%emt 0:00:13]} 35. Rb1 Bc5 1/2-1/2

[Event "GER-ch Youth-ODJM 2022 B"]
[Site "Willingen"]
[Date "2022.06.10"]
[Round "8.10"]
[White "Kroemer, Emanuel"]
[Black "Wechtenbruch, Jamie"]
[Result "1-0"]
[ECO "D05"]
[WhiteElo "1415"]
[BlackElo "1489"]
[Annotator "NA RC COMBH"]
[PlyCount "49"]
[EventDate "2022.06.05"]
[EventType "swiss"]
[EventRounds "9"]
[EventCountry "GER"]
[SourceTitle "playchess.com"]
[Source "ChessBase"]
[SourceQuality "1"]
[TimeControl "40/4500+30:900+30"]

1. d4 {[%emt 0:00:00]} d5 {[%emt 0:00:00]} 2. Nf3 {[%emt 0:00:00]} Nf6 {[%emt 0:00:00]} 3. e3 {[%emt 0:00:00]} e6 {[%emt 0:00:00]} 4. Bd3 {[%emt 0:00:00]} Be7 {[%emt 0:00:00]} 5. O-O {[%emt 0:00:00]} O-O {[%emt 0:00:00]} 6. b3 {[%emt 0:00:00]} Nbd7 {[%emt 0:00:00]} 7. Bb2 {[%emt 0:00:00]} b6 {[%emt 0:00:00]} 8. Nbd2 {[%emt 0:00:00]} Bb7 {[%emt 0:00:00]} 9. Ne5 {[%emt 0:00:00]} h6 {[%emt 0:00:00]} 10. c4 {[%emt 0:00:00]} Nxe5 {[%emt 0:05:44]} 11. dxe5 {[%emt 0:00:38]} Nd7 {[%emt 0:00:29]} 12. f4 {[%emt 0:10:04]} dxc4 {[%emt 0:35:25]} 13. Bxc4 {[%emt 0:01:20]} Nc5 {[%emt 0:03:17]} 14. e4 {[%emt 0:02:21]} Ba6 {[%emt 0:00:30]} 15. Qe2 {[%emt 0:00:30]} Bxc4 {[%emt 0:13:40]} 16. f5 {[%emt 0:20:48]} Qc8 {[%emt 0:01:06]} 17. Qxc4 {[%emt 0:00:08]} exf5 18. exf5 {[%emt 0:00:18]} Qa6 {[%emt 0:04:55]} 19. Qg4 {[%emt 0:05:26]} Qc8 {[%emt 0:05:52]} 20. Rf3 {[%emt 0:02:15]} g5 {[%emt 0:05:44]} 21. Qh5 {[%emt 0:01:14]} f6 {[%emt 0:05:05]} 22. Qg6+ {[%emt 0:00:36]} Kh8 {[%emt 0:00:12]} 23. Qxh6+ {[%emt 0:00:04]} Kg8 {[%emt 0:00:09]} 24. Qg6+ {[%emt 0:00:06]} Kh8 {[%emt 0:00:12]} 25. Rh3# 1-0

[Event "GER-ch Youth-ODJM 2022 B"]
[Site "Willingen"]
[Date "2022.06.10"]
[Round "8.12"]
[White "Götz, Timon"]
[Black "Paqarizi, Endrit"]
[Result "1-0"]
[ECO "A30"]
[WhiteElo "1558"]
[BlackElo "1380"]
[Annotator "NA RC COMBH"]
[PlyCount "47"]
[EventDate "2022.06.05"]
[EventType "swiss"]
[EventRounds "9"]
[EventCountry "GER"]
[SourceTitle "playchess.com"]
[Source "ChessBase"]
[SourceQuality "1"]
[TimeControl "40/4500+30:900+30"]

1. c4 {[%emt 0:00:00]} c5 {[%emt 0:00:00]} 2. g3 {[%emt 0:00:00]} Nc6 {[%emt 0:00:00]} 3. Bg2 {[%emt 0:00:00]} Nf6 {[%emt 0:00:00]} 4. Nc3 {[%emt 0:00:00]} e6 {[%emt 0:00:00]} 5. Nf3 {[%emt 0:00:00]} Be7 {[%emt 0:00:00]} 6. O-O {[%emt 0:00:00]} O-O {[%emt 0:00:00]} 7. d4 {[%emt 0:00:00]} cxd4 {[%emt 0:00:00]} 8. Nxd4 {[%emt 0:00:00]} Qc7 {[%emt 0:01:04]} 9. b3 {[%emt 0:00:00]} b6 {[%emt 0:00:36]} 10. Bb2 {[%emt 0:00:00]} Bb7 {[%emt 0:00:19]} 11. Rc1 {[%emt 0:00:00]} Nxd4 {[%emt 0:10:40]} 12. Qxd4 {[%emt 0:00:00]} Bxg2 {[%emt 0:01:05]} 13. Kxg2 {[%emt 0:00:00]} a6 {[%emt 0:00:26]} 14. Rfd1 {[%emt 0:00:00]} Rfd8 {[%emt 0:01:01]} 15. Ne4 {[%emt 0:02:56]} Qb7 {[%emt 0:13:29]} 16. f3 {[%emt 0:00:18]} d5 {[%emt 0:00:54]} 17. cxd5 {[%emt 0:01:51]} Rxd5 {[%emt 0:01:32]} 18. Qc4 {[%emt 0:04:53]} Nxe4 {[%emt 0:05:16]} 19. Qxe4 {[%emt 0:01:21]} Rad8 {[%emt 0:04:27]} 20. Rd3 {[%emt 0:05:25]} Qd7 {[%emt 0:01:58]} 21. Rcd1 {[%emt 0:01:47]} Qb5 {[%emt 0:03:01]} 22. Qg4 {[%emt 0:03:17]} Bg5 {[%emt 0:01:08]} 23. Qxg5 f6 24. Qg4 1-0

[Event "GER-ch Youth-ODJM 2022 B"]
[Site "Willingen"]
[Date "2022.06.11"]
[Round "9.1"]
[White "Werner, Florin"]
[Black "Türel, Tugrul"]
[Result "1/2-1/2"]
[ECO "C97"]
[WhiteElo "1609"]
[BlackElo "1206"]
[Annotator "NA RC COMBH"]
[PlyCount "43"]
[EventDate "2022.06.05"]
[EventType "swiss"]
[EventRounds "9"]
[EventCountry "GER"]
[SourceTitle "playchess.com"]
[Source "ChessBase"]
[SourceQuality "1"]
[TimeControl "40/4500+30:900+30"]

1. e4 {[%emt 0:00:00]} e5 {[%emt 0:00:00]} 2. Nf3 {[%emt 0:00:00]} Nc6 {[%emt 0:00:00]} 3. Bb5 {[%emt 0:00:00]} a6 {[%emt 0:00:00]} 4. Ba4 {[%emt 0:00:00]} Nf6 {[%emt 0:00:00]} 5. O-O {[%emt 0:00:00]} Be7 {[%emt 0:00:00]} 6. Re1 {[%emt 0:00:00]} b5 {[%emt 0:00:00]} 7. Bb3 {[%emt 0:00:00]} O-O {[%emt 0:00:00]} 8. c3 {[%emt 0:00:00]} d6 {[%emt 0:00:00]} 9. h3 {[%emt 0:00:00]} Na5 {[%emt 0:00:00]} 10. Bc2 {[%emt 0:00:00]} c5 {[%emt 0:00:00]} 11. d4 {[%emt 0:00:00]} Qc7 {[%emt 0:00:00]} 12. d5 {[%emt 0:00:00]} c4 {[%emt 0:00:00]} 13. Nbd2 {[%emt 0:00:00]} Nb7 {[%emt 0:00:00]} 14. Nf1 {[%emt 0:00:00]} Nc5 {[%emt 0:00:00]} 15. Ng3 {[%emt 0:00:00]} Re8 {[%emt 0:00:00]} 16. Be3 {[%emt 0:00:00]} Bd7 {[%emt 0:00:00]} 17. Qd2 {[%emt 0:00:00]} a5 {[%emt 0:00:00]} 18. Bxc5 {[%emt 0:00:00]} Qxc5 {[%emt 0:00:00]} 19. a3 {[%emt 0:00:00]} Rab8 {[%emt 0:00:00]} 20. Rac1 {[%emt 0:00:00]} Qb6 {[%emt 0:03:36]} 21. Bd1 {[%emt 0:00:00]} Rec8 {[%emt 0:03:08]} 22. Be2 {[%emt 0:00:00]} 1/2-1/2

[Event "GER-ch Youth-ODJM 2022 B"]
[Site "Willingen"]
[Date "2022.06.11"]
[Round "9.2"]
[White "Günther, Arthur"]
[Black "Maul, Maik Joel"]
[Result "1-0"]
[ECO "B01"]
[WhiteElo "1579"]
[BlackElo "1532"]
[Annotator "NA RC COMBH"]
[PlyCount "47"]
[EventDate "2022.06.05"]
[EventType "swiss"]
[EventRounds "9"]
[EventCountry "GER"]
[SourceTitle "playchess.com"]
[Source "ChessBase"]
[SourceQuality "1"]
[TimeControl "40/4500+30:900+30"]

1. e4 {[%emt 0:00:00]} d5 {[%emt 0:00:00]} 2. exd5 {[%emt 0:00:00]} Qxd5 {[%emt 0:00:00]} 3. Nc3 {[%emt 0:00:00]} Qa5 {[%emt 0:00:00]} 4. d4 {[%emt 0:00:00]} Nf6 {[%emt 0:00:00]} 5. Bc4 {[%emt 0:00:00]} Nc6 {[%emt 0:00:00]} 6. Nge2 {[%emt 0:00:00]} Bg4 {[%emt 0:00:00]} 7. f3 {[%emt 0:00:00]} Bh5 {[%emt 0:00:00]} 8. Bd2 {[%emt 0:00:00]} O-O-O {[%emt 0:00:00]} 9. a3 {[%emt 0:00:00]} Nxd4 {[%emt 0:00:00]} 10. Nxd4 {[%emt 0:00:00]} Rxd4 {[%emt 0:00:00]} 11. Nb5 {[%emt 0:00:00]} Qb6 {[%emt 0:00:00]} 12. Nxd4 {[%emt 0:00:00]} Qxd4 {[%emt 0:00:00]} 13. Qe2 {[%emt 0:00:00]} Qxb2 {[%emt 0:00:00]} 14. O-O {[%emt 0:00:56]} e6 {[%emt 0:00:00]} 15. Be3 {[%emt 0:37:21]} Bg6 {[%emt 0:02:00]} 16. Bb3 {[%emt 0:09:47]} Qe5 {[%emt 0:03:04]} 17. Qf2 {[%emt 0:06:04]} Bd6 {[%emt 0:01:42]} 18. g3 {[%emt 0:02:32]} Qa5 {[%emt 0:02:33]} 19. Rfd1 {[%emt 0:03:53]} Nd5 {[%emt 0:01:38]} 20. Bd4 {[%emt 0:03:23]} f6 {[%emt 0:00:58]} 21. c4 {[%emt 0:03:47]} e5 {[%emt 0:02:59]} 22. c5 {[%emt 0:07:59]} Nc3 {[%emt 0:02:06]} 23. Bxc3 {[%emt 0:01:04]} Qxc3 {[%emt 0:01:39]} 24. Be6+ 1-0

[Event "GER-ch Youth-ODJM 2022 B"]
[Site "Willingen"]
[Date "2022.06.11"]
[Round "9.3"]
[White "Morio, Estelle"]
[Black "Kieselbach, Marvin"]
[Result "0-1"]
[ECO "A02"]
[WhiteElo "1823"]
[BlackElo "1662"]
[Annotator "NA RC COMBH"]
[PlyCount "58"]
[EventDate "2022.06.05"]
[EventType "swiss"]
[EventRounds "9"]
[EventCountry "GER"]
[SourceTitle "playchess.com"]
[Source "ChessBase"]
[SourceQuality "1"]
[TimeControl "40/4500+30:900+30"]

1. f4 {[%emt 0:00:00]} Nf6 {[%emt 0:00:00]} 2. Nf3 {[%emt 0:00:00]} d6 {[%emt 0:00:00]} 3. d3 {[%emt 0:00:00]} g6 {[%emt 0:00:00]} 4. b3 {[%emt 0:00:00]} Bg7 {[%emt 0:00:00]} 5. Bb2 {[%emt 0:00:00]} O-O {[%emt 0:00:00]} 6. e4 {[%emt 0:00:00]} c5 {[%emt 0:00:00]} 7. g3 {[%emt 0:07:27]} Nc6 {[%emt 0:00:00]} 8. Qd2 {[%emt 0:08:46]} Nxe4 {[%emt 0:00:00]} 9. Qc1 {[%emt 0:01:17]} Nf6 {[%emt 0:03:24]} 10. Bg2 {[%emt 0:00:20]} e5 {[%emt 0:04:48]} 11. fxe5 {[%emt 0:00:38]} dxe5 {[%emt 0:06:25]} 12. O-O {[%emt 0:01:31]} Ng4 {[%emt 0:06:19]} 13. Nc3 {[%emt 0:10:48]} Bh6 {[%emt 0:00:57]} 14. Qe1 {[%emt 0:00:39]} Nb4 {[%emt 0:01:21]} 15. Qe2 {[%emt 0:03:31]} Ne3 {[%emt 0:02:44]} 16. Rf2 {[%emt 0:03:17]} Nexc2 {[%emt 0:03:11]} 17. a3 {[%emt 0:09:46]} Nxa1 {[%emt 0:00:44]} 18. Bxa1 {[%emt 0:04:39]} Nc6 {[%emt 0:06:53]} 19. Rf1 {[%emt 0:06:00]} Bg4 {[%emt 0:06:13]} 20. Ne4 {[%emt 0:01:14]} Nd4 {[%emt 0:07:00]} 21. Qb2 {[%emt 0:01:26]} Bxf3 {[%emt 0:02:55]} 22. Bxf3 {[%emt 0:00:12]} Nxf3+ {[%emt 0:11:31]} 23. Rxf3 {[%emt 0:00:07]} Qd4+ {[%emt 0:00:24]} 24. Kg2 {[%emt 0:03:15]} Qxb2+ {[%emt 0:00:14]} 25. Bxb2 {[%emt 0:00:04]} Bg7 {[%emt 0:02:23]} 26. Nxc5 {[%emt 0:03:03]} Rfc8 {[%emt 0:02:21]} 27. Ne4 {[%emt 0:02:50]} Rc2+ {[%emt 0:01:05]} 28. Rf2 {[%emt 0:00:04]} Rac8 {[%emt 0:00:48]} 29. a4 {[%emt 0:02:34]} f5 {[%emt 0:01:20]} 0-1